bitfinex/quotes_ETHUSD_20250724
["timestamp","ask_amount","ask_price","bid_price","bid_amount"]
[1753342812412,5.37739167,3570.9,3570.2,4.4]
[1753342813199,1.55587721,3570.9,3570.3,2.82886985]
[1753342813400,4.35629167,3570.9,3570.3,0.14]
[1753342813584,3.73511446,3570.9,3570.3,0.14]
[1753342813783,0.9347,3570.9,3570.3,0.14]
[1753342814593,0.9347,3570.9,3570.3,2.94086967]
[1753342814767,0.9347,3570.9,3570.3,0.14]
[1753342814964,0.14,3570.9,3570.3,4.1722994]
[1753342815199,0.14,3571.3,3570.9,2.80036075]
[1753342815403,0.14,3571.3,3570.8,4.56900492]
[1753342815668,0.7627,3571.9,3571.0,0.4648]
[1753342816013,2.79970883,3571.8,3571.2,2.94017459]
[1753342816190,0.77619747,3571.7,3571.3,4.4]
[1753342816706,0.14,3571.5,3571.3,4.4]
[1753342817579,0.14,3571.5,3571.0,0.14]
[1753342817782,0.14,3571.5,3571.3,4.4]
[1753342818401,3.56235418,3571.9,3571.3,7.20009905]
[1753342818699,0.14,3571.7,3571.3,7.66489905]
[1753342818903,0.14,3571.7,3571.4,2.80000999]
[1753342819103,0.8162,3572.2,3571.7,2.79977643]
[1753342819276,0.14,3572.2,3571.7,7.19877643]
[1753342819474,0.14,3572.2,3571.8,2.79969786]
[1753342819703,0.8045,3572.4,3572.0,2.79950148]
[1753342819905,0.14,3572.3,3572.2,2.79938093]
[1753342820590,0.798,3572.9,3572.2,2.799392]
[1753342820790,0.14,3572.5,3572.3,0.8029]
[1753342821029,0.14,3572.5,3572.4,3.26397967]
[1753342821205,0.042,3572.9,3572.4,0.6048]
[1753342821506,0.042,3572.9,3572.7,2.79896595]
[1753342821803,0.042,3572.9,3572.5,4.8638]
[1753342822105,0.042,3572.9,3572.6,4.399]
[1753342822106,0.7816,3572.8,3572.6,4.399]
[1753342822307,3.96357355,3572.7,3572.6,4.399]
[1753342822609,4.10357355,3572.7,3572.6,4.399]
[1753342822904,0.83347,3572.7,3572.6,4.399]
[1753342823794,0.14,3572.7,3572.6,4.399]
[1753342824104,0.182,3572.9,3572.6,4.399]
[1753342825218,2.79893675,3572.8,3572.6,4.399]
[1753342825382,2.9808778,3572.9,3572.6,4.399]
[1753342825581,2.79898024,3572.8,3572.6,4.399]
[1753342825802,3.27010355,3572.7,3572.6,4.399]
[1753342826002,1.9128,3572.7,3571.7,0.4648]
[1753342826318,2.93916702,3572.5,3571.9,7.33761961]
[1753342826895,2.7992386,3572.4,3571.9,4.538]
[1753342827296,0.14,3572.5,3571.9,4.538]
[1753342827497,2.79926355,3572.4,3571.9,4.538]
[1753342827894,2.79939116,3572.3,3571.9,0.14]
[1753342828094,2.79925739,3572.4,3572.0,4.398]
[1753342828623,2.93918534,3572.5,3572.0,4.398]
[1753342828823,0.14,3572.5,3572.0,7.19752878]
[1753342828985,2.93916738,3572.5,3572.0,4.398]
[1753342829618,0.14,3572.5,3572.0,4.398]
[1753342830025,2.93916205,3572.5,3572.0,4.398]
[1753342830522,0.14,3572.5,3572.0,4.8628]
[1753342830696,2.79892776,3572.8,3572.3,0.14]
[1753342830904,2.79892521,3572.8,3572.4,4.397]
[1753342831425,2.79892727,3572.8,3572.4,4.397]
[1753342831717,2.79906668,3572.7,3572.4,4.397]
[1753342831922,2.93906668,3572.7,3572.4,4.397]
[1753342832086,2.79911854,3572.6,3572.4,4.397]
[1753342832931,2.93903398,3572.7,3572.4,4.397]
[1753342833127,0.14,3572.7,3572.4,4.397]
[1753342833497,2.79916025,3572.5,3572.4,4.397]
[1753342833830,3.09307628,3572.5,3572.4,4.397]
[1753342833995,0.43391603,3572.5,3572.4,4.397]
[1753342834200,3.23307628,3572.5,3572.4,4.397]
[1753342834515,2.79925072,3572.4,3572.3,4.397]
[1753342834714,0.43391603,3572.5,3571.5,1.2865]
[1753342834715,1.24391603,3572.5,3571.5,1.2865]
[1753342835028,1.24391603,3572.5,3571.5,0.8217]
[1753342835029,0.14,3572.1,3571.5,0.8217]
[1753342835205,0.14,3572.1,3571.6,4.396]
[1753342835920,2.79965659,3571.9,3571.6,4.396]
[1753342836298,2.79965659,3571.9,3571.1,12.52325692]
[1753342836299,1.3801,3572.0,3570.8,0.755]
[1753342836504,2.79999654,3571.5,3571.1,0.14]
[1753342836720,2.79999654,3571.5,3571.3,0.001]
[1753342836921,2.93989517,3571.6,3571.3,0.001]
[1753342838146,2.79994746,3571.5,3571.3,0.001]
[1753342838315,2.93989699,3571.6,3571.3,0.001]
[1753342838798,2.79994732,3571.5,3571.3,0.001]
[1753342839002,2.7999689,3571.5,3571.3,0.001]
[1753342839201,0.14,3571.6,3571.3,0.001]
[1753342839522,2.8000224,3571.4,3571.3,0.001]
[1753342840046,2.9400224,3571.4,3571.3,0.001]
[1753342840342,4.74641766,3571.4,3571.3,0.001]
[1753342840572,5.29641766,3571.4,3571.3,0.001]
[1753342841310,1.17539526,3571.4,3571.3,0.001]
[1753342841508,0.7855,3572.0,3571.3,4.8504]
[1753342841509,2.79978637,3571.8,3571.3,4.8504]
[1753342841714,2.79978916,3571.7,3571.3,4.8504]
[1753342841909,2.79973039,3571.8,3571.3,4.8504]
[1753342842441,2.79963893,3571.9,3571.3,4.8504]
[1753342842644,2.8000224,3571.4,3571.3,0.001]
[1753342842799,3.5544224,3571.4,3571.3,0.001]
[1753342843007,4.0158224,3571.4,3571.3,0.001]
[1753342844029,4.5658224,3571.4,3571.3,0.001]
[1753342844229,5.30239809,3571.4,3571.3,0.001]
[1753342845448,4.08659809,3571.4,3571.3,0.001]
[1753342846097,5.34639809,3571.4,3571.3,0.001]
[1753342850560,4.88499809,3571.4,3571.3,0.001]
[1753342851266,0.35851389,3571.8,3571.3,0.001]
[1753342851267,2.79995466,3571.5,3571.3,0.001]
[1753342851431,0.14,3571.4,3571.3,0.001]
[1753342852053,0.4614,3572.3,3571.3,0.4544]
[1753342852273,0.14,3571.6,3571.3,0.4544]
[1753342852727,0.14,3571.6,3571.3,0.001]
[1753342852927,0.14,3571.6,3571.4,0.4534]
[1753342853127,0.14,3571.6,3571.5,0.4534]
[1753342856432,0.14,3571.6,3571.3,2.8011007]
[1753342856899,0.14,3571.6,3571.4,0.4534]
[1753342860956,0.14,3571.6,3571.5,0.4534]
[1753342862766,0.14,3571.8,3571.5,7.647344]
[1753342862965,0.95,3572.0,3571.6,0.4534]
[1753342863171,0.95,3572.0,3571.9,2.79963044]
[1753342863371,0.95,3572.0,3571.9,7.64703044]
[1753342864470,0.95,3572.0,3571.9,8.46443044]
[1753342864780,0.95,3572.0,3571.9,8.60443044]
[1753342865304,0.95,3572.0,3571.9,16.87101304]
[1753342866389,1e-08,3572.0,3571.9,16.87101304]
[1753342866576,1e-08,3572.3,3572.2,3.58549533]
[1753342866765,0.002,3572.6,3572.5,6.58526025]
[1753342866966,0.002,3572.6,3572.5,16.38484285]
[1753342867207,0.042,3572.9,3572.8,3.58502521]
[1753342867421,0.042,3572.9,3572.8,6.79224432]
[1753342867575,0.042,3572.9,3572.8,11.32524432]
[1753342867911,0.042,3572.9,3572.8,19.88459067]
[1753342869608,0.042,3572.9,3572.8,8.11702521]
[1753342869805,0.042,3572.9,3572.8,8.55632521]
[1753342870405,0.042,3572.9,3572.8,5.7574]
[1753342870607,0.042,3572.9,3572.5,0.8265]
[1753342870807,0.042,3572.9,3572.4,0.4393]
[1753342870808,0.182,3572.9,3572.4,2.93922748]
[1753342871009,0.182,3572.9,3572.6,4.391]
[1753342871226,0.042,3572.9,3572.6,4.531]
[1753342871403,0.042,3572.9,3572.6,4.9703]
[1753342871597,0.042,3572.9,3572.6,4.531]
[1753342871912,0.042,3572.9,3572.7,4.391]
[1753342873245,0.042,3572.9,3572.6,0.14]
[1753342873246,2.84087206,3572.9,3572.6,0.14]
[1753342873538,0.042,3572.9,3572.6,0.14]
[1753342873702,2.79897419,3572.8,3572.7,4.391]
[1753342873905,0.042,3572.9,3572.7,4.391]
[1753342874507,2.84086939,3572.9,3572.7,4.391]
[1753342874698,2.84086939,3572.9,3572.1,7.71371887]
[1753342874699,0.66578621,3572.9,3572.1,7.71371887]
[1753342874924,0.14,3572.8,3572.3,0.14]
[1753342875241,0.7741,3572.7,3572.3,0.14]
[1753342875410,3.57312046,3572.7,3572.4,4.39]
[1753342875813,3.57312046,3572.7,3572.3,0.14]
[1753342875814,2.7990819,3572.6,3572.3,0.14]
[1753342876041,2.93908709,3572.6,3572.4,4.39]
[1753342876407,0.14,3572.6,3572.4,4.39]
[1753342876630,2.79916025,3572.5,3572.4,4.39]
[1753342877636,0.4563,3572.5,3572.4,4.39]
[1753342877837,3.25546025,3572.5,3572.4,4.39]
[1753342878020,2.79916025,3572.5,3572.4,4.39]
[1753342878424,2.93908653,3572.6,3572.4,4.39]
[1753342879031,2.79916025,3572.5,3572.4,4.39]
[1753342879227,2.93910115,3572.6,3572.4,4.39]
[1753342879538,0.14,3572.6,3572.4,4.39]
[1753342879739,2.93908196,3572.6,3572.4,4.39]
[1753342880044,2.79916025,3572.5,3572.4,4.39]
[1753342880243,0.14,3572.6,3572.4,4.39]
[1753342881118,2.9390848,3572.6,3572.4,4.39]
[1753342881322,0.14,3572.6,3572.4,4.39]
[1753342881510,2.94109275,3572.6,3572.4,4.39]
[1753342882443,0.142,3572.6,3572.4,4.39]
[1753342882657,2.94109212,3572.6,3572.4,4.39]
[1753342882820,0.142,3572.6,3572.4,4.39]
[1753342883432,2.94115822,3572.6,3572.4,4.39]
[1753342883637,2.94110789,3572.6,3572.4,4.39]
[1753342883923,0.142,3572.6,3572.4,4.39]
[1753342886776,3.64234639,3572.6,3572.5,4.389]
[1753342887062,1.39323206,3572.6,3572.5,4.389]
[1753342887431,4.19231396,3572.6,3572.5,4.389]
[1753342888240,1.39323206,3572.6,3572.5,4.389]
[1753342890561,4.19231396,3572.6,3572.5,4.389]
[1753342891276,1.39323206,3572.6,3572.5,4.389]
[1753342891562,4.19231396,3572.6,3572.5,4.389]
[1753342891762,1.39323206,3572.6,3572.5,4.389]
[1753342891964,4.19231396,3572.6,3572.5,4.389]
[1753342892962,1.39323206,3572.6,3572.5,4.389]
[1753342893571,4.19231396,3572.6,3572.5,4.389]
[1753342893965,1.39323206,3572.6,3572.5,4.389]
[1753342894762,4.19231396,3572.6,3572.5,4.389]
[1753342895635,1.39323206,3572.6,3572.5,4.389]
[1753342897747,2.79918409,3572.5,3572.0,5.26784809]
[1753342897950,0.14,3572.4,3572.1,4.387]
[1753342898252,0.002,3572.6,3572.3,6.06494809]
[1753342898453,0.002,3572.6,3572.5,2.79916025]
[1753342898660,0.002,3572.6,3572.5,7.18616025]
[1753342898971,0.002,3572.6,3572.5,7.62446025]
[1753342899173,0.002,3572.6,3572.5,8.44966025]
[1753342899401,0.002,3572.6,3572.5,8.58966025]
[1753342902896,0.042,3572.9,3572.8,2.79892521]
[1753342903171,0.042,3572.9,3572.8,13.4247733]
[1753342903541,0.042,3572.9,3572.8,16.8630733]
[1753342904440,0.002,3573.1,3573.0,2.79876854]
[1753342904642,0.002,3573.1,3573.0,8.11395622]
[1753342904842,0.002,3573.1,3573.0,8.52426854]
[1753342906388,0.002,3573.4,3573.3,3.58313356]
[1753342906686,0.002,3573.8,3573.7,2.79822033]
[1753342906886,0.002,3573.8,3573.7,7.18222033]
[1753342907178,0.002,3574.4,3574.0,2.79798545]
[1753342907477,0.002,3574.4,3574.3,8.99019869]
[1753342907646,0.002,3574.4,3574.3,13.58745359]
[1753342907842,0.002,3574.4,3574.3,14.02575359]
[1753342908775,0.002,3574.4,3574.3,14.02475359]
[1753342909072,0.002,3574.4,3574.3,9.64175359]
[1753342909276,0.002,3574.4,3574.3,4.383]
[1753342910775,0.002,3574.4,3574.3,4.382]
[1753342910963,2.79798078,3574.1,3573.6,4.2626]
[1753342911164,2.79782888,3574.2,3573.8,0.14]
[1753342911371,0.14,3574.3,3573.9,2.79806373]
[1753342911674,0.14,3574.3,3574.0,4.382]
[1753342912367,0.002,3574.4,3574.1,0.4383]
[1753342912571,0.002,3574.4,3574.2,7.17982888]
[1753342912883,0.002,3574.4,3574.2,4.8203]
[1753342913046,0.002,3574.4,3574.3,2.7977506]
[1753342913377,0.002,3574.4,3574.3,0.4383]
[1753342913575,0.002,3574.4,3574.3,4.382]
[1753342913975,2.79781691,3574.3,3573.7,0.8111]
[1753342914177,0.4375,3574.4,3573.8,4.382]
[1753342914383,3.23522882,3574.4,3573.8,4.382]
[1753342914582,2.79776641,3574.3,3573.8,4.382]
[1753342915750,4.03632888,3574.2,3573.4,3.0]
[1753342916056,3.78341573,3574.1,3573.5,4.381]
[1753342916362,2.79813902,3573.9,3573.5,4.381]
[1753342916575,2.79812039,3573.9,3573.5,4.381]
[1753342916768,0.4355,3573.9,3573.5,4.381]
[1753342916981,0.4355,3573.9,3573.6,4.381]
[1753342917185,3.34796697,3574.1,3573.6,4.381]
[1753342917378,3.49286168,3574.0,3573.6,4.381]
[1753342917854,2.79808427,3573.9,3573.6,4.381]
[1753342918267,1.13037531,3574.0,3573.6,4.381]
[1753342918563,0.4355,3574.0,3573.6,4.381]
[1753342918979,3.34792307,3574.1,3573.6,4.381]
[1753342919176,0.803,3574.2,3573.6,4.8193]
[1753342919380,0.002,3574.4,3574.0,8.11673898]
[1753342919565,0.002,3574.4,3574.1,4.38]
[1753342919963,0.002,3574.4,3573.6,0.8303]
[1753342919964,2.79782888,3574.2,3573.6,0.8303]
[1753342920271,4.00986082,3574.3,3573.7,7.17816654]
[1753342920580,1.89304799,3574.3,3573.7,4.38]
[1753342920987,1.89304799,3574.3,3573.8,2.79811634]
[1753342921304,0.002,3574.4,3573.8,2.79811634]
[1753342921305,2.7997,3574.4,3573.8,2.79812432]
[1753342921672,2.7997,3574.4,3573.7,4.8183]
[1753342921673,0.002,3574.4,3573.7,4.38]
[1753342921874,0.002,3574.4,3574.3,2.7977506]
[1753342922075,0.002,3574.4,3574.3,7.1777506]
[1753342922393,0.002,3574.4,3574.3,7.6160506]
[1753342923174,0.002,3574.4,3574.3,8.4483506]
[1753342925097,0.002,3574.4,3574.3,11.4483506]
[1753342926192,0.7916,3575.7,3574.8,3.59305929]
[1753342926396,0.14,3575.5,3574.8,7.97205929]
[1753342926603,0.14,3575.5,3574.8,8.11205929]
[1753342926767,0.14,3575.5,3574.8,8.55035929]
[1753342929377,0.14,3575.5,3574.8,8.759466]
[1753342931494,0.14,3575.5,3574.8,4.380466]
[1753342931696,0.14,3575.5,3574.8,8.757466]
[1753342933305,0.14,3575.5,3574.8,14.01684563]
[1753342933699,0.14,3575.5,3574.8,8.63503892]
[1753342933904,0.14,3575.5,3574.8,13.04663892]
[1753342938409,0.14,3575.5,3574.8,12.57373892]
[1753342938577,0.14,3575.5,3574.8,8.40856501]
[1753342938889,0.14,3575.5,3574.8,8.88146501]
[1753342939095,0.14,3575.5,3574.8,13.25646501]
[1753342939407,0.14,3575.5,3574.8,8.88146501]
[1753342939591,0.14,3575.5,3574.8,13.25646501]
[1753342940907,0.002,3575.7,3574.8,13.25646501]
[1753342941106,0.002,3575.7,3574.8,14.07356501]
[1753342941329,0.002,3575.7,3575.6,2.79673341]
[1753342941513,0.002,3575.7,3575.6,12.43111304]
[1753342942514,0.002,3575.7,3575.6,12.90401304]
[1753342942715,0.002,3575.7,3575.6,13.04401304]
[1753342944294,0.002,3575.7,3575.6,13.86111304]
[1753342944604,0.002,3575.7,3575.6,9.48611304]
[1753342944818,0.002,3575.7,3575.6,13.86011304]
[1753342946710,0.002,3575.7,3575.6,13.85911304]
[1753342947602,0.002,3575.7,3575.6,6.21647963]
[1753342947802,0.002,3575.7,3575.6,0.14]
[1753342948047,0.4751,3575.7,3575.6,4.373]
[1753342948236,0.002,3575.7,3575.6,4.373]
[1753342949511,0.002,3575.7,3575.6,4.513]
[1753342949715,0.002,3575.7,3575.5,5.25937963]
[1753342949914,0.002,3575.7,3575.2,5.25937963]
[1753342950114,2.79688657,3575.5,3575.3,4.372]
[1753342950315,2.79688657,3575.5,3575.2,0.14]
[1753342950316,2.79681163,3575.5,3575.2,0.14]
[1753342950550,2.79717508,3575.1,3574.5,2.79753637]
[1753342950704,2.79717508,3575.1,3574.8,0.14]
[1753342951048,2.93696808,3575.3,3575.0,5.25937963]
[1753342951049,0.14,3575.3,3575.0,5.25937963]
[1753342951266,0.7841,3575.6,3575.0,5.25937963]
[1753342951267,0.7841,3575.6,3575.1,4.8449]
[1753342951563,0.14,3575.5,3575.1,4.8449]
[1753342951716,2.79868112,3575.7,3575.4,5.25937963]
[1753342951898,0.142,3575.7,3575.5,4.372]
[1753342952099,0.002,3575.7,3575.5,4.372]
[1753342952320,0.002,3575.7,3575.6,0.14]
[1753342952556,0.002,3575.7,3575.6,0.6129]
[1753342952739,0.002,3575.7,3575.5,4.372]
[1753342952944,0.002,3575.7,3575.5,0.14]
[1753342953258,0.002,3575.7,3575.6,4.372]
[1753342953753,0.4731,3575.6,3574.9,3.0]
[1753342953916,2.79693659,3575.4,3575.0,0.14]
[1753342954249,2.79693659,3575.4,3574.6,0.4729]
[1753342954250,0.8241,3575.1,3574.6,0.4729]
[1753342954552,0.8241,3575.1,3573.9,0.4739]
[1753342954553,0.6131,3575.0,3573.9,0.4739]
[1753342954762,3.56729406,3574.5,3573.9,0.001]
[1753342954937,3.70729406,3574.5,3574.4,4.372]
[1753342955104,4.18039406,3574.5,3574.4,4.372]
[1753342955741,0.9097,3574.5,3574.4,4.372]
[1753342955952,0.14,3574.5,3574.4,4.372]
[1753342957057,2.79759016,3574.6,3574.4,4.372]
[1753342957719,0.14,3574.7,3574.5,4.371]
[1753342957926,2.7975158,3574.6,3574.4,0.001]
[1753342958126,3.37026797,3574.7,3574.5,4.371]
[1753342958339,0.14,3574.7,3574.5,4.371]
[1753342958546,0.14,3574.7,3574.5,9.63037963]
[1753342958874,0.4328,3574.6,3574.4,0.001]
[1753342959152,0.4328,3574.6,3574.5,4.371]
[1753342959358,2.93744471,3574.7,3574.5,4.371]
[1753342959660,2.7975158,3574.6,3574.5,4.371]
[1753342960163,3.2303158,3574.6,3574.5,4.371]
[1753342960325,0.14,3574.7,3574.5,4.371]
[1753342960526,0.14,3574.7,3574.4,0.001]
[1753342960727,0.14,3574.7,3574.6,4.371]
[1753342960929,2.93744031,3574.7,3574.6,4.371]
[1753342961530,5.79700284,3575.3,3574.6,4.371]
[1753342961531,0.04,3576.9,3574.8,0.55]
[1753342961734,0.04,3576.9,3574.7,0.7675]
[1753342961735,0.04,3576.9,3575.9,0.7675]
[1753342961947,0.75312334,3578.2,3577.6,0.55]
[1753342962268,2.54072462,3578.7,3577.5,3.60784807]
[1753342962269,0.75312334,3578.6,3577.7,4.371]
[1753342962414,2.79509181,3577.7,3577.6,4.432]
[1753342962611,0.56301055,3577.7,3577.5,4.432]
[1753342963015,0.4328,3578.2,3577.5,4.432]
[1753342963210,0.4328,3578.2,3577.0,0.8126]
[1753342963211,2.79530182,3577.5,3577.0,0.8126]
[1753342963454,2.79530182,3577.5,3577.1,4.433]
[1753342963823,2.79534216,3577.4,3577.1,4.433]
[1753342964045,4.02700435,3577.3,3577.2,4.431]
[1753342964367,4.02700435,3577.3,3576.0,7.5437]
[1753342964368,1.63430044,3577.3,3576.6,4.433]
[1753342964569,2.79587329,3576.7,3576.6,4.433]
[1753342964945,2.79587329,3576.7,3576.2,4.432]
[1753342964946,2.79595146,3576.6,3576.2,4.432]
[1753342965132,0.4328,3576.5,3575.8,4.436]
[1753342965335,0.4328,3576.5,3575.1,0.04]
[1753342965336,0.4328,3576.5,3575.1,0.4701]
[1753342965559,2.79671688,3575.7,3575.2,4.438]
[1753342965736,2.79675424,3575.6,3575.2,4.438]
[1753342966068,2.79650582,3575.9,3575.2,4.8681]
[1753342966364,2.796186,3576.3,3575.3,3.25502311]
[1753342966565,2.79648174,3576.0,3575.3,0.45806968]
[1753342966752,2.79648174,3576.0,3575.4,4.436]
[1753342967268,2.79650558,3575.9,3575.4,4.436]
[1753342967560,2.79650558,3575.9,3575.5,4.8651]
[1753342968146,2.79658167,3575.8,3575.5,4.8651]
[1753342968360,2.79652468,3575.9,3575.5,4.8651]
[1753342968749,2.7963454,3576.1,3575.5,4.8651]
[1753342968938,2.79642751,3576.0,3575.6,4.435]
[1753342969881,2.79619361,3576.3,3575.6,4.435]
[1753342970193,0.002,3575.9,3575.7,4.429]
[1753342970349,0.002,3575.9,3575.5,0.4301]
[1753342970545,0.002,3575.9,3575.6,4.429]
[1753342970947,0.002,3575.9,3575.6,2.79673341]
[1753342971187,0.002,3575.9,3575.7,4.428]
[1753342971590,0.002,3575.9,3575.7,4.8581]
[1753342971794,0.002,3575.9,3575.7,4.428]
[1753342972601,0.002,3575.9,3575.6,0.14]
[1753342972602,0.002,3575.9,3575.8,4.426]
[1753342973323,2.79850457,3575.9,3575.6,0.14]
[1753342973479,0.002,3575.9,3575.7,4.424]
[1753342973676,2.79657698,3575.8,3575.7,4.423]
[1753342973904,2.93657698,3575.8,3575.7,4.423]
[1753342974517,0.14,3575.8,3575.7,4.423]
[1753342974714,2.93657698,3575.8,3575.7,4.423]
[1753342974918,0.002,3575.9,3575.7,4.8531]
[1753342975234,0.002,3575.9,3575.8,0.4301]
[1753342976224,0.002,3575.9,3575.8,3.22667698]
[1753342976639,0.002,3575.9,3575.8,4.01007698]
[1753342981013,0.002,3575.9,3575.8,7.01007698]
[1753342981520,2.93531554,3577.5,3576.3,3.826]
[1753342981861,0.79620364,3577.5,3577.0,0.14]
[1753342982059,2.79537515,3577.4,3577.1,4.417]
[1753342982230,2.79540612,3577.3,3577.2,4.416]
[1753342982435,2.79540612,3577.3,3576.3,0.826]
[1753342982436,0.5728,3577.3,3577.0,4.416]
[1753342982638,3.9872825,3577.2,3575.4,1.2254]
[1753342982831,0.14,3576.6,3576.1,0.14]
[1753342983019,0.14,3576.6,3576.0,4.426]
[1753342983020,0.14,3576.4,3576.0,4.426]
[1753342983225,0.14,3576.4,3576.0,7.22241285]
[1753342983425,0.14,3576.5,3576.0,7.65251285]
[1753342983631,0.14,3576.5,3576.1,0.4301]
[1753342984850,2.93603281,3576.5,3576.1,0.4301]
[1753342985425,0.14,3576.5,3576.1,0.4301]
[1753342986367,0.14,3576.5,3576.0,4.426]
[1753342986589,0.14,3576.5,3576.0,7.22241839]
[1753342986786,2.79580491,3576.8,3576.2,2.79622391]
[1753342986992,2.93595366,3576.6,3576.1,0.4301]
[1753342988092,2.93595366,3576.6,3576.0,7.22236436]
[1753342988660,0.14,3576.6,3576.1,2.79632396]
[1753342989810,2.93596359,3576.6,3576.0,7.22239926]
[1753342990017,2.79603446,3576.5,3576.0,4.426]
[1753342990390,2.93596886,3576.6,3576.0,7.2224177]
[1753342990586,0.14,3576.6,3576.0,4.426]
[1753342990787,2.79607583,3576.5,3576.0,4.426]
[1753342990991,2.93598452,3576.6,3576.0,7.22241372]
[1753342991315,2.93598452,3576.6,3576.1,2.79633329]
[1753342991316,0.14,3576.6,3576.1,2.79633329]
[1753342991677,7.21444184,3577.3,3576.1,2.79633329]
[1753342991678,0.8224,3578.3,3576.8,2.79579512]
[1753342991876,0.26092915,3579.1,3577.8,3.56131369]
[1753342992117,1.07349071,3579.2,3577.8,11.01531369]
[1753342992308,0.04,3579.9,3578.8,3.6135327]
[1753342992617,0.04,3579.9,3578.8,8.11347502]
[1753342992792,2.83339473,3579.9,3578.8,8.0855327]
[1753342992992,2.83339473,3579.9,3578.8,8.5149327]
[1753342993192,0.04,3579.9,3578.8,8.5149327]
[1753342993389,2.79362515,3579.6,3578.8,5.7217]
[1753342993592,0.04,3579.9,3578.8,8.5159327]
[1753342993792,2.79355816,3579.7,3578.8,8.5159327]
[1753342993979,2.79370418,3579.5,3578.8,8.5159327]
[1753342994313,2.79369699,3579.5,3578.8,1.2487]
[1753342994513,0.04,3579.9,3578.8,8.5129327]
[1753342994514,2.83345031,3579.9,3578.8,8.5129327]
[1753342994828,2.79359804,3579.7,3578.8,8.5109327]
[1753342995120,2.79363651,3579.6,3578.8,8.5109327]
[1753342995415,0.04,3579.9,3578.8,8.5109327]
[1753342995616,2.83338278,3579.9,3578.8,8.5109327]
[1753342995911,2.79354824,3579.7,3578.8,8.5109327]
[1753342996414,2.8333874,3579.9,3578.8,8.5109327]
[1753342996611,2.79352186,3579.8,3578.8,8.5109327]
[1753342996830,0.04,3579.9,3578.8,8.5109327]
[1753342997177,2.83339756,3579.9,3578.8,8.5069327]
[1753342997618,2.79350698,3579.8,3578.8,8.5069327]
[1753342997915,0.04,3579.9,3578.8,1.45456918]
[1753342998090,0.002,3579.7,3578.8,8.71180188]
[1753342998491,2.79371261,3579.5,3578.8,8.71180188]
[1753342998695,2.79553154,3579.7,3578.8,5.09826918]
[1753342998875,2.79370168,3579.5,3578.8,5.09826918]
[1753342999418,14.79377421,3579.4,3578.8,4.463]
[1753342999615,2.7940083,3579.1,3578.8,4.463]
[1753342999809,2.7940083,3579.1,3578.8,4.46]
[1753342999810,2.79400163,3579.1,3578.8,4.46]
[1753343000007,12.0,3579.4,3578.8,5.2506]
[1753343000190,12.0,3579.4,3578.8,8.4742327]
[1753343001962,12.0,3579.4,3578.8,11.4742327]
[1753343002115,12.0,3579.4,3578.8,11.6142327]
[1753343004147,12.0,3579.4,3578.8,7.1542327]
[1753343004348,12.0,3579.4,3578.8,11.6122327]
[1753343004548,12.0,3579.4,3578.8,11.6102327]
[1753343004919,12.0,3579.4,3578.8,7.1542327]
[1753343005124,12.0,3579.4,3578.8,11.6102327]
[1753343005948,12.0,3579.4,3579.3,5.79384237]
[1753343006149,12.0,3579.4,3579.3,18.35118447]
[1753343006347,12.0,3579.4,3579.3,18.92058447]
[1753343006751,12.0,3579.4,3579.3,19.60238447]
[1753343007448,12.0,3579.4,3579.3,19.60038447]
[1753343010252,2.90349123,3579.4,3579.3,19.60038447]
[1753343011268,1e-08,3579.4,3579.3,15.14938447]
[1753343011476,0.002,3579.7,3579.6,5.79360822]
[1753343011656,0.002,3579.7,3579.6,10.23860822]
[1753343011841,0.002,3579.7,3579.6,10.66700822]
[1753343013538,0.002,3579.7,3579.6,6.22300822]
[1753343013878,0.002,3579.7,3579.6,10.66700822]
[1753343014246,0.002,3579.7,3579.6,6.22300822]
[1753343014998,0.002,3579.7,3579.6,10.66400822]
[1753343015646,1e-08,3579.9,3579.8,2.79345214]
[1753343015943,1e-08,3579.9,3579.8,19.12599424]
[1753343016197,0.04,3580.9,3580.8,2.79267202]
[1753343016494,0.04,3580.9,3580.8,4.451]
[1753343016658,0.04,3580.9,3580.8,7.38367202]
[1753343016856,0.04,3580.9,3580.8,0.14]
[1753343017395,0.04,3580.9,3580.8,4.449]
[1753343017678,0.04,3580.9,3580.8,7.24167202]
[1753343017884,0.04,3580.9,3580.8,7.68497202]
[1753343018851,0.04,3580.9,3580.8,4.449]
[1753343019047,0.04,3580.9,3580.7,0.14]
[1753343019590,0.04,3580.9,3580.8,4.449]
[1753343019951,0.04,3580.9,3580.8,10.68497202]
[1753343021688,0.04,3580.9,3580.8,6.23597202]
[1753343021850,0.04,3580.9,3580.8,7.455]
[1753343022250,0.04,3580.9,3580.8,10.24767202]
[1753343022993,0.04,3580.9,3580.8,7.455]
[1753343023291,0.04,3580.9,3580.8,4.455]
[1753343024087,0.04,3580.9,3580.8,4.452]
[1753343024893,0.04,3580.9,3580.7,2.93272333]
[1753343025057,0.04,3580.9,3580.8,4.451]
[1753343025388,0.04,3580.9,3580.8,7.68697202]
[1753343026270,0.04,3580.9,3580.8,8.44617202]
[1753343027483,0.04,3580.9,3580.8,11.44617202]
[1753343028323,1e-08,3580.9,3580.8,11.99617202]